bitfinex-derivatives/quotes_ETHF0:USTF0_20240910
["timestamp","ask_amount","ask_price","bid_price","bid_amount"]
[1725949142262,0.21331565,2345.0,2344.9,10.86005432]
[1725949142459,1.89185242,2345.0,2344.9,10.78056729]
[1725949142654,1.67853677,2345.0,2344.9,13.41752844]
[1725949142864,1.67853677,2345.0,2344.9,11.18346729]
[1725949143267,1.89183754,2345.0,2344.9,12.86138743]
[1725949143769,0.21330077,2345.0,2344.9,12.86138743]
[1725949144062,2.6086281,2345.1,2345.0,0.42641]
[1725949144269,2.82192972,2345.1,2345.0,4.29876948]
[1725949144663,2.82192828,2345.1,2345.0,4.29876948]
[1725949146869,2.82192828,2345.1,2345.0,4.68406948]
[1725949147164,1.67804322,2345.1,2345.0,12.82974503]
[1725949147567,1.67804322,2345.1,2345.0,11.89452641]
[1725949148266,0.21328451,2345.1,2345.0,4.4289765]
[1725949148466,0.21328451,2345.1,2345.0,2.05680563]
[1725949148467,2.9823281,2345.1,2345.0,2.05680563]
[1725949148765,3.19561261,2345.1,2345.0,2.05680563]
[1725949149473,2.9823281,2345.1,2345.0,2.05680563]
[1725949149673,3.19563359,2345.1,2345.0,2.05680563]
[1725949149966,3.19563359,2345.1,2345.0,3.17482601]
[1725949150155,3.19563359,2345.1,2345.0,2.05680563]
[1725949150355,3.19563359,2345.1,2345.0,3.17482601]
[1725949150568,3.19563359,2345.1,2345.0,2.05680563]
[1725949150967,4.42563359,2345.1,2344.9,1.11802038]
[1725949151174,3.68133359,2345.0,2344.9,0.42643]
[1725949151358,6.44351193,2345.0,2344.9,2.05709224]
[1725949151562,0.21330549,2345.0,2344.9,1.05362378]
[1725949151759,3.53655608,2345.1,2345.0,0.42641]
[1725949151961,3.19440454,2345.1,2345.0,2.00465293]
[1725949152171,0.95761841,2345.1,2345.0,2.00465293]
[1725949153468,5.77799133,2345.1,2345.0,2.00465293]
[1725949153661,5.99130974,2345.1,2345.0,2.00465293]
[1725949154575,5.9912829,2345.1,2345.0,0.42641]
[1725949154764,5.9912829,2345.1,2345.0,2.08906619]
[1725949157969,5.9912829,2345.1,2345.0,0.42641]
[1725949158176,5.9912829,2345.1,2345.0,2.07467439]
[1725949158470,5.9912829,2345.1,2345.0,0.42641]
[1725949158666,5.9912829,2345.1,2345.0,2.07467784]
[1725949160668,5.9912829,2345.1,2345.0,1.06035917]
[1725949161069,5.9912829,2345.1,2345.0,2.07467116]
[1725949162177,5.9912829,2345.1,2345.0,2.07467514]
[1725949162871,5.9912829,2345.1,2345.0,1.06035917]
[1725949163373,5.9912829,2345.1,2345.0,2.07469451]
[1725949163565,5.9912829,2345.1,2345.0,1.06035917]
[1725949164566,5.98546686,2345.1,2345.0,1.06035917]
[1725949164778,5.98546686,2345.1,2345.0,0.42641]
[1725949165180,5.98546686,2345.1,2345.0,1.68369414]
[1725949167181,3.19321078,2345.1,2345.0,1.68369414]
[1725949168179,3.19321078,2345.1,2345.0,1.05505789]
[1725949168386,3.19321078,2345.1,2345.0,1.68368333]
[1725949168785,3.19321078,2345.1,2345.0,2.68094909]
[1725949169583,3.19339647,2345.1,2345.0,2.68094909]
[1725949169984,3.19339647,2345.1,2345.0,2.0523012]
[1725949170879,3.19339647,2345.1,2345.0,1.05503544]
[1725949171379,3.19339647,2345.1,2345.0,0.42641]
[1725949171779,3.19339647,2345.1,2345.0,1.0497289]
[1725949172479,6.54202362,2345.1,2345.0,1.0497289]
[1725949172677,3.19339647,2345.1,2345.0,1.0497289]
[1725949173789,3.19339647,2345.1,2345.0,0.42641]
[1725949174375,7.88376528,2345.1,2344.9,0.42641]
[1725949174682,7.40940243,2345.0,2344.9,0.42641]
[1725949174983,4.96032715,2345.0,2344.9,0.42641]
[1725949175190,7.40940243,2345.0,2344.9,0.42641]
[1725949175387,4.48718528,2345.0,2344.9,0.42641]
[1725949175680,4.06077528,2345.0,2344.9,0.42641]
[1725949176085,7.40940243,2345.0,2344.9,0.42641]
[1725949176284,4.06077528,2345.0,2344.9,0.42641]
[1725949179180,8.32557528,2345.0,2344.8,0.42644]
[1725949179379,3.69559052,2344.9,2344.7,0.42645]
[1725949179583,4.05889052,2344.8,2344.7,0.42645]
[1725949179788,4.42769052,2344.8,2344.7,0.42645]
[1725949179986,8.69249052,2344.8,2344.7,0.42645]
[1725949184179,8.6855481,2344.8,2344.7,0.42645]
[1725949186583,11.47736556,2344.8,2344.7,0.42645]
[1725949187485,9.01871746,2344.8,2344.7,0.42645]
[1725949188988,6.2269,2344.8,2344.7,0.42645]
[1725949189887,11.26279956,2344.8,2344.7,0.42645]
[1725949190788,6.99799956,2344.8,2344.7,0.42645]
[1725949191692,7.2113592,2344.8,2344.7,0.42645]
[1725949191884,1.9621,2344.8,2344.7,0.42645]
[1725949195785,1.9621,2344.8,2344.7,0.42647]
[1725949196787,7.21226029,2344.8,2344.7,0.42647]
[1725949197494,7.21226029,2344.8,2344.6,0.42647]
[1725949197704,0.403,2344.7,2344.6,0.42647]
[1725949197997,3.73752034,2344.8,2344.7,0.42647]
[1725949198894,3.73752034,2344.8,2344.7,0.82037]
[1725949199095,3.36872034,2344.8,2344.7,0.82037]
[1725949199405,3.36872034,2344.8,2344.7,1.21757]
[1725949200697,2.79205969,2344.8,2344.7,1.21757]
[1725949201596,2.79205969,2344.8,2344.0,2.5384353]
[1725949201597,8.28685969,2344.8,2344.4,0.42652]
[1725949201812,1.23,2344.5,2344.3,0.42653]
[1725949202099,3.16235969,2344.4,2344.2,0.3992]
[1725949202287,2.81982392,2344.3,2344.2,0.82576]
[1725949202692,4.04982392,2344.3,2344.2,0.82576]
[1725949203400,4.04982392,2344.3,2344.2,0.42656]
[1725949203984,1.0664,2344.2,2343.8,0.099]
[1725949204187,1.23,2343.9,2343.8,0.42663]
[1725949204390,7.94224153,2343.9,2343.8,0.42663]
[1725949204601,7.50504153,2343.9,2343.8,0.42663]
[1725949204792,8.52166606,2343.9,2343.8,0.42663]
[1725949204987,8.73510226,2343.9,2343.8,0.42663]
[1725949206289,8.17411241,2343.9,2343.8,0.42663]
[1725949206498,6.5026362,2343.9,2343.8,0.42663]
[1725949206688,2.2362362,2343.9,2343.8,0.42663]
[1725949206890,3.69433344,2343.9,2343.8,0.42663]
[1725949207289,1.90684125,2343.9,2343.8,0.42663]
[1725949207486,2.46433344,2343.9,2343.8,0.42663]
[1725949207695,1.90686524,2343.9,2343.8,0.42663]
[1725949208295,1.90647105,2343.9,2343.8,0.42663]
[1725949208798,1.90647105,2343.9,2343.8,0.79223]
[1725949210000,3.69433344,2343.9,2343.8,0.42663]
[1725949210192,4.49714344,2343.9,2343.8,0.42663]
[1725949210898,4.07053344,2343.9,2343.8,0.42663]
[1725949211499,4.28397851,2343.9,2343.8,0.42663]
[1725949211688,4.07053344,2343.9,2343.8,0.42663]
[1725949211891,4.71058518,2343.9,2343.8,0.42663]
[1725949212097,4.71058801,2343.9,2343.8,0.42663]
[1725949212290,3.93824214,2343.9,2343.8,0.42663]
[1725949214294,3.93824214,2343.9,2343.7,0.42664]
[1725949214501,1.23,2343.8,2343.7,0.42664]
[1725949215501,6.60903214,2343.8,2343.2,0.099]
[1725949215701,1.23,2343.3,2343.2,0.82044]
[1725949215895,1.23,2343.3,2343.2,0.42674]
[1725949216402,1.65673,2343.3,2343.2,0.42674]
[1725949216608,1.65673,2343.3,2343.1,0.42675]
[1725949216896,1.23,2343.2,2343.1,0.42676]
[1725949218202,1.65674,2343.2,2343.1,0.42676]
[1725949218401,0.42676,2343.1,2343.0,0.3937]
[1725949218597,1.23,2343.2,2343.0,0.82048]
[1725949218598,1.65675,2343.2,2343.0,0.82048]
[1725949218802,1.65675,2343.2,2343.0,0.42678]
[1725949219297,1.65675,2343.2,2342.9,0.42678]
[1725949219298,0.42676,2343.1,2342.9,0.42678]
[1725949219501,1.6004,2343.0,2342.9,0.42678]
[1725949219693,1.9864,2343.0,2342.9,0.42678]
[1725949220091,2.41319,2343.0,2342.8,0.79881]
[1725949220301,0.42682,2342.8,2342.4,0.7592]
[1725949220607,1.23,2342.7,2342.6,0.42684]
[1725949222100,5.4988,2342.7,2342.1,0.099]
[1725949222305,5.4988,2342.7,2342.4,0.42687]
[1725949222306,1.23,2342.5,2342.4,0.42687]
[1725949222695,1.6059,2342.5,2342.4,0.42687]
[1725949224298,0.7601,2342.6,2342.5,0.42687]
[1725949224299,0.3963,2342.6,2342.5,0.42687]
[1725949224505,0.3759,2342.8,2342.7,0.42683]
[1725949224812,2.03271,2342.8,2342.6,0.42684]
[1725949225006,1.23,2342.7,2342.6,0.42684]
[1725949232719,4.173,2343.2,2342.7,1.06709]
[1725949232909,0.42677,2343.1,2342.9,0.4268]
[1725949233218,1.23,2343.0,2342.9,0.4268]
[1725949234015,1.23,2343.0,2342.9,0.7944]
[1725949234718,1.23,2343.0,2342.8,0.4268]
[1725949235017,1.5963,2342.9,2342.8,0.4268]
[1725949235321,1.5963,2342.9,2342.6,0.42684]
[1725949235322,0.42684,2342.7,2342.6,0.42684]
[1725949235518,1.23,2342.6,2342.5,0.79447]
[1725949235707,1.23,2342.6,2342.5,0.42687]
[1725949238208,3.09684,2342.7,2342.6,0.42685]
[1725949238411,0.42685,2342.6,2342.5,0.42686]
[1725949238614,2.67,2342.7,2342.3,0.7699]
[1725949238815,0.42686,2342.6,2342.4,0.42687]
[1725949239212,0.80597,2342.5,2342.4,0.42687]
[1725949239720,3.47597,2342.5,2342.4,0.42687]
[1725949240318,0.42689,2342.4,2342.1,0.3988]
[1725949240516,2.67,2342.3,2342.1,0.7746]
[1725949240723,3.09692,2342.3,2342.1,0.80273]
[1725949240920,2.67,2342.3,2342.1,0.3758]
[1725949241126,3.09691,2342.3,2342.2,0.42692]
[1725949241317,2.67,2342.3,2342.0,0.42695]
[1725949242010,0.42694,2342.2,2342.0,0.42695]
[1725949242218,0.42694,2342.1,2341.9,0.82547]
[1725949242622,0.42694,2342.1,2341.9,0.42697]
[1725949243015,3.09694,2342.1,2341.9,0.42697]
[1725949243519,0.3813,2342.0,2341.9,0.42697]
[1725949245714,0.3813,2342.0,2341.9,0.42698]
[1725949245916,1.58016,2342.0,2341.9,0.42698]
[1725949246910,1.1532,2342.0,2341.9,0.42698]
[1725949247324,0.7763,2342.0,2341.9,0.42698]
[1725949248432,0.3813,2342.0,2341.9,0.42698]
[1725949251921,0.80826,2342.0,2341.8,0.42698]
[1725949252127,0.3765,2341.9,2341.8,0.42698]
[1725949252824,0.42702,2341.7,2341.2,1.16677]
[1725949253036,0.7627,2341.6,2341.5,0.42704]
[1725949253632,1.18973,2341.6,2341.5,0.42704]
[1725949253827,0.7627,2341.6,2341.5,0.42704]
[1725949255118,0.3704,2341.6,2341.5,0.42704]
[1725949260136,0.79743,2341.6,2341.5,0.42704]
[1725949260328,0.79743,2341.6,2341.4,0.42706]
[1725949260527,0.3656,2341.5,2341.4,0.42706]
[1725949264128,0.3704,2341.6,2341.5,0.42705]
[1725949266141,2.02743,2341.6,2341.3,0.3866]
[1725949266636,2.02743,2341.6,2341.5,0.42705]
[1725949267841,3.14006214,2341.6,2341.5,0.42705]
[1725949268136,1.91006214,2341.6,2341.5,0.42705]
[1725949268440,0.79743,2341.6,2341.5,0.42705]
[1725949269727,0.3704,2341.6,2341.5,0.42705]
[1725949270634,2.29603214,2341.8,2341.6,0.42701]
[1725949270830,2.29603214,2341.8,2341.5,0.7836]
[1725949270831,1.86903214,2341.8,2341.7,0.42701]
[1725949271044,0.7564,2341.8,2341.7,0.42701]
[1725949271340,0.3733,2341.9,2341.8,0.427]
[1725949271930,0.3733,2341.9,2341.8,4.6974]
[1725949272132,0.3733,2341.9,2341.8,0.427]
[1725949272331,0.80028,2341.9,2341.7,0.427]
[1725949272533,3.47028,2341.9,2341.7,0.427]
[1725949272749,4.58291214,2341.9,2341.8,0.427]
[1725949273246,4.15593214,2341.9,2341.8,0.427]
[1725949273740,3.0433,2341.9,2341.8,0.427]
[1725949274044,4.15470145,2341.9,2341.8,0.427]
[1725949274541,4.15481478,2341.9,2341.8,0.427]
[1725949275347,1.48481478,2341.9,2341.8,0.427]
[1725949275846,1.11151478,2341.9,2341.8,0.427]
[1725949276143,1.53848478,2342.0,2341.8,0.427]
[1725949276346,1.11151478,2341.9,2341.8,0.427]
[1725949276843,1.11151478,2341.9,2341.8,4.6974]
[1725949277841,4.20849478,2341.9,2341.5,1.1672]
[1725949278039,1.90021478,2341.8,2341.7,0.427]
[1725949278341,2.32721478,2341.8,2341.7,0.427]
[1725949278542,1.90021478,2341.8,2341.7,0.427]
[1725949278942,2.28641478,2341.8,2341.7,0.427]
[1725949279352,2.84643344,2341.8,2341.7,0.427]
[1725949280936,3.06006435,2341.8,2341.7,0.427]
[1725949281134,2.84643344,2341.8,2341.7,0.427]
[1725949281437,1.38852996,2341.8,2341.7,0.427]
[1725949283139,3.62099602,2341.8,2341.7,0.427]
[1725949284448,3.62099602,2341.8,2341.6,0.42702]
[1725949284640,1.88590834,2341.7,2341.6,0.42702]
[1725949284845,0.21362996,2341.7,2341.6,0.42702]
[1725949285141,0.64063996,2341.7,2341.6,0.42702]
[1725949285344,2.87310602,2341.7,2341.6,0.42702]
[1725949285540,2.87310602,2341.7,2341.5,1.1672]
[1725949285541,0.42703,2341.6,2341.5,0.81024]
[1725949285841,0.42705,2341.5,2341.2,4.67856823]
[1725949286046,1.11513558,2341.4,2341.3,0.81679]
[1725949286238,2.07290338,2341.4,2341.3,1.41735971]
[1725949286552,2.44620338,2341.4,2341.3,1.02765971]
[1725949286747,2.65985476,2341.4,2341.3,1.02765971]
[1725949288048,2.07290338,2341.4,2341.3,1.02765971]
[1725949288244,2.2865551,2341.4,2341.3,1.02765971]
[1725949289942,2.2865551,2341.4,2341.3,0.42709]
[1725949290340,2.2865551,2341.4,2341.3,1.0223265]
[1725949290852,1.04092172,2341.4,2341.3,0.5952365]
[1725949291154,3.27338778,2341.4,2341.3,1.0223265]
[1725949291337,4.07631958,2341.4,2341.3,1.0223265]
[1725949292240,4.07631958,2341.4,2341.2,0.4271]
[1725949292442,1.88739859,2341.3,2341.2,0.4271]
[1725949292751,1.88740039,2341.3,2341.2,1.01123676]
[1725949292948,0.21365532,2341.3,2341.2,0.4271]
[1725949293144,0.21365532,2341.3,2341.2,1.01124758]
[1725949294246,0.64074532,2341.3,2341.2,0.58414758]
[1725949294554,2.44612138,2341.3,2341.2,1.01125758]
[1725949296255,0.21365532,2341.3,2341.2,1.03270971]
[1725949298249,2.44612138,2341.3,2341.2,1.03270971]
[1725949299048,0.21365532,2341.3,2341.2,1.03270971]
[1725949299846,1.88761401,2341.3,2341.2,1.03270971]
[1725949300043,0.21365532,2341.3,2341.2,1.03270971]
[1725949300253,1.67393008,2341.3,2341.2,1.03270971]
[1725949300443,1.8875854,2341.3,2341.2,1.03270971]
[1725949301050,1.67393008,2341.3,2341.2,1.03270971]
[1725949301247,1.88758273,2341.3,2341.2,2.00163696]
[1725949301552,1.88758273,2341.3,2341.2,1.41480971]
[1725949301748,1.88758273,2341.3,2341.2,2.38375822]
[1725949301951,1.88758273,2341.3,2341.2,1.41480971]
[1725949303152,1.88758273,2341.3,2341.2,6.91600664]
[1725949303349,1.67393008,2341.3,2341.2,6.91600664]
[1725949304155,1.88758105,2341.3,2341.2,6.91600664]
[1725949305559,1.88758721,2341.3,2341.2,6.91600664]
[1725949305858,1.67393008,2341.3,2341.2,6.91600664]
[1725949306059,1.88758662,2341.3,2341.2,6.91600664]
[1725949306545,1.67393008,2341.3,2341.2,5.68600664]
[1725949306859,1.88758653,2341.3,2341.2,5.68600664]
[1725949307459,1.67393008,2341.3,2341.2,5.68600664]
[1725949307860,1.88758559,2341.3,2341.2,5.68600664]
[1725949308062,1.88758721,2341.3,2341.2,5.68600664]
[1725949309059,1.67393008,2341.3,2341.2,5.68600664]
[1725949309653,1.67393008,2341.3,2341.2,5.6806439]
[1725949309863,1.88758582,2341.3,2341.2,5.6806439]
[1725949310059,1.88758582,2341.3,2341.2,5.2985439]
[1725949310966,1.88758587,2341.3,2341.2,5.2985439]
[1725949311362,0.21365579,2341.3,2341.2,5.2985439]
[1725949311569,1.67371817,2341.3,2341.2,5.2985439]
[1725949311764,1.88737396,2341.3,2341.2,1.0273439]
[1725949311966,0.21365579,2341.3,2341.2,1.0273439]
[1725949312161,1.67366606,2341.3,2341.2,1.0273439]
[1725949312366,1.88732185,2341.3,2341.2,1.0273439]
[1725949313670,1.67366606,2341.3,2341.2,1.0273439]
[1725949314375,1.67366606,2341.3,2341.2,0.6002339]
[1725949314564,1.67366606,2341.3,2341.2,1.0273439]
[1725949315161,1.88732633,2341.3,2341.2,1.0273439]
[1725949316078,0.21366027,2341.3,2341.2,1.0273439]
[1725949316259,0.21366027,2341.3,2341.2,0.42711]
[1725949316466,0.21366027,2341.3,2341.2,1.02200392]
[1725949316665,0.21366027,2341.3,2341.2,1.0220083]
[1725949316969,3.86266606,2341.4,2341.2,1.0220083]
[1725949317176,3.86266606,2341.4,2341.2,0.42711]
[1725949319279,1.6302,2341.4,2341.2,0.42711]
[1725949320481,1.6302,2341.4,2341.3,0.42709]
[1725949321177,1.6302,2341.4,2341.2,0.42709]
[1725949321680,1.6302,2341.4,2341.3,0.42709]
[1725949322584,1.6302,2341.4,2341.3,1.01661302]
[1725949322784,0.4002,2341.4,2341.3,1.01661302]
[1725949323484,0.4002,2341.4,2341.3,0.42709]
[1725949324284,0.4002,2341.4,2341.3,1.01662541]
[1725949325085,0.82727,2341.4,2341.2,0.4271]
[1725949325484,0.21366784,2341.3,2341.0,1.23]
[1725949325788,3.61927386,2341.4,2341.2,0.42709]
[1725949325983,0.21366725,2341.3,2341.2,0.42709]
[1725949326177,0.21366725,2341.3,2341.2,1.01663979]
[1725949326883,1.23,2341.3,2341.2,0.41083979]
[1725949327187,0.42718,2340.8,2340.7,1.1199729]
[1725949327485,2.23316379,2340.9,2340.8,0.42718]
[1725949327684,2.44686669,2340.9,2340.8,0.42718]
[1725949327885,0.5939029,2340.9,2340.8,0.42718]
[1725949328086,2.82643928,2340.9,2340.8,0.42718]
[1725949329078,0.5939029,2340.9,2340.8,0.82438]
[1725949329381,2.82643928,2340.9,2340.8,0.82438]
[1725949329580,2.82643928,2340.9,2340.8,0.42718]
[1725949329891,3.25359928,2340.9,2340.7,0.42718]
[1725949330184,0.5782029,2340.8,2340.7,0.42718]
[1725949330486,2.81073928,2340.8,2340.7,0.42718]
[1725949330882,0.5782029,2340.8,2340.5,0.7608]
[1725949331089,1.11584119,2340.6,2340.5,1.18803]
[1725949331287,1.88792777,2340.7,2340.6,0.42721]
[1725949331492,0.2137029,2340.7,2340.6,0.42721]
[1725949331680,1.67380998,2340.7,2340.6,0.42721]
[1725949331881,1.88752266,2340.7,2340.6,0.42721]
[1725949332091,1.67380998,2340.7,2340.6,0.42721]
[1725949332878,1.67380998,2340.7,2340.6,5.92921]
[1725949333078,0.56558366,2341.1,2340.7,4.272]
[1725949333291,0.56558366,2341.3,2341.2,0.42711]
[1725949333489,1.67377258,2341.5,2341.2,3.52713072]
[1725949333686,1.23,2341.3,2341.1,2.30591944]
[1725949333880,1.23,2341.3,2341.1,1.94211944]
[1725949334081,0.4001,2341.2,2341.1,0.82302]
[1725949334284,0.4001,2341.2,2341.1,1.74610532]
[1725949334482,1.67377258,2341.3,2341.2,0.42711]
[1725949334891,2.90377258,2341.4,2341.1,1.94210944]
[1725949335101,2.05347258,2341.3,2341.2,0.42711]
[1725949335289,2.26713161,2341.3,2341.1,0.82302]
[1725949335490,2.05347258,2341.3,2341.2,0.42711]
[1725949335689,2.26713701,2341.3,2341.1,0.82301]
[1725949335988,2.05347258,2341.3,2341.1,0.82301]
[1725949336196,1.67377258,2341.2,2341.1,0.82301]
[1725949337082,2.05347258,2341.3,2341.2,0.42711]
[1725949337278,2.05347258,2341.3,2341.2,1.36100521]
[1725949337279,0.3797,2341.3,2341.2,1.36100521]
[1725949337484,2.05347258,2341.3,2341.2,0.42711]
[1725949338493,1.67377258,2341.3,2341.2,0.42711]
[1725949338791,1.67377258,2341.3,2341.2,1.65711]
[1725949338991,1.67377258,2341.4,2341.3,0.42709]
[1725949339389,1.67377258,2341.4,2341.3,0.81869]
[1725949340093,1.88742394,2341.4,2341.3,0.3916]
[1725949340291,0.21365136,2341.4,2341.2,0.8097]
[1725949340491,0.21365136,2341.4,2341.3,0.58368012]
[1725949340698,0.21365136,2341.4,2341.3,1.01077012]
[1725949340898,0.21365136,2341.4,2341.3,0.42709]
[1725949341597,0.21365254,2341.4,2341.3,0.42709]
[1725949341792,3.16295474,2341.5,2341.2,0.80969]
[1725949342102,1.67407107,2341.3,2341.2,0.80971]
[1725949343086,1.67407107,2341.3,2341.2,1.39338842]
[1725949343698,1.88772361,2341.4,2341.3,0.42709]
[1725949343994,1.88771314,2341.4,2341.3,0.42709]
[1725949344296,0.21364207,2341.4,2341.2,0.58367842]
[1725949344595,0.21364207,2341.3,2341.2,0.58367842]
[1725949344797,0.3843,2341.3,2341.1,0.42712]
[1725949345007,1.65711,2341.2,2340.9,0.81855]
[1725949345296,5.53894127,2341.3,2341.0,0.58373249]
[1725949345297,1.03656207,2341.1,2341.0,0.58373249]
[1725949345500,1.03656207,2341.1,2340.8,0.42717]
[1725949345501,2.26656207,2341.1,2340.8,0.42717]
[1725949345703,1.67401758,2340.9,2340.8,0.42717]
[1725949345891,1.67401758,2340.9,2340.8,1.00557103]
[1725949346094,1.67401758,2341.0,2340.9,0.42716]
[1725949346293,1.88769463,2341.0,2340.9,1.00556103]
[1725949346492,1.88770019,2341.0,2340.9,1.00556103]
[1725949346786,1.88770019,2341.0,2340.9,0.42716]
[1725949346992,0.21368261,2341.0,2340.9,0.42716]
[1725949347196,0.21368261,2341.0,2340.9,0.98878796]
[1725949347197,1.67397276,2341.0,2340.9,0.98878796]
[1725949347493,1.88765537,2341.0,2340.9,0.42716]
[1725949347696,1.67397276,2341.0,2340.9,0.42716]
[1725949347887,0.3958,2341.1,2341.0,0.42714]
[1725949347888,2.06977276,2341.1,2341.0,0.42714]
[1725949348090,0.3843,2341.3,2341.1,0.42712]
[1725949348091,1.67397276,2341.2,2341.1,0.42712]
[1725949348294,1.88764618,2341.2,2341.1,0.3653]
[1725949348599,1.88764618,2341.2,2341.1,0.79242]
[1725949348600,1.67397276,2341.2,2341.1,0.79242]
[1725949348799,1.88764707,2341.2,2341.1,0.79242]
[1725949349187,0.21367431,2341.2,2341.1,0.79242]
[1725949349393,1.67396697,2341.2,2341.1,0.79242]
[1725949349594,1.88764128,2341.2,2341.1,0.79242]
[1725949349992,1.88764174,2341.2,2341.1,1.35891251]
[1725949350201,2.27823609,2341.2,2341.1,0.79242]
[1725949350497,2.27824119,2341.2,2341.1,0.79242]
[1725949350799,2.06456697,2341.2,2341.1,0.79242]
[1725949351007,0.3906,2341.2,2341.1,1.35891089]
[1725949351304,2.06456697,2341.2,2341.1,1.35891089]
[1725949351601,2.06056697,2341.3,2341.2,0.42711]
[1725949351798,4.12045474,2341.5,2341.4,0.42707]
[1725949351799,1.67396697,2341.5,2341.4,0.42707]
[1725949352004,1.67396697,2341.6,2341.5,0.42705]
[1725949352204,1.1539,2341.7,2341.6,0.42703]
[1725949352205,2.82786697,2341.7,2341.6,0.42703]
[1725949352400,3.04149739,2341.7,2341.6,0.42703]
[1725949352896,3.04149739,2341.7,2341.5,1.16464]
[1725949353096,2.82786697,2341.7,2341.5,1.16464]
[1725949355604,2.82786697,2341.7,2341.6,0.42703]
[1725949355908,3.04149344,2341.7,2341.5,1.16464]
[1725949356099,2.82786697,2341.7,2341.6,0.42703]
[1725949356301,1.1539,2341.7,2341.6,0.42703]
[1725949358102,0.7622,2341.7,2341.6,0.42703]
[1725949361504,0.7622,2341.7,2341.2,3.41667674]
[1725949361808,0.7622,2341.7,2341.3,0.57129479]
[1725949362106,0.7622,2341.7,2341.2,4.18507674]
[1725949362301,0.7622,2341.7,2341.6,0.42703]
[1725949362697,2.64831082,2341.7,2341.6,0.42703]
[1725949362900,0.7622,2341.7,2341.6,0.42703]
[1725949363706,2.43468181,2341.7,2341.6,0.42703]
[1725949364308,0.7622,2341.7,2341.6,0.42703]
[1725949365110,0.7622,2341.7,2341.6,0.82643]
[1725949365499,2.43468181,2341.7,2341.6,0.82643]
[1725949366104,0.7622,2341.7,2341.6,0.82643]
[1725949366507,2.43468181,2341.7,2341.6,0.82643]
[1725949366702,0.7622,2341.7,2341.6,0.82643]
[1725949367000,0.384,2341.7,2341.6,0.82643]
[1725949367204,0.384,2341.7,2341.6,1.04433769]
[1725949368115,3.29638181,2341.9,2341.8,0.427]
[1725949368408,0.379,2341.9,2341.8,0.427]
[1725949368606,0.379,2341.9,2341.8,6.9949]
[1725949368812,2.05348181,2342.1,2342.0,0.42696]
[1725949369011,0.381,2342.1,2342.0,0.42696]
[1725949374702,0.381,2342.1,2342.0,0.81766]
[1725949375615,0.759,2342.2,2342.1,0.42694]
[1725949396741,0.759,2342.2,2342.0,2.68789]
[1725949396742,5.0286,2342.2,2342.0,0.42695]
[1725949396930,5.0286,2342.2,2341.6,1.89662956]
[1725949396931,1.88607422,2342.1,2341.6,0.21790769]
[1725949397124,1.67248181,2341.9,2341.6,0.42702]
[1725949397331,1.67248181,2341.7,2341.4,1.23]
[1725949397530,1.67248181,2341.7,2341.6,0.42702]
[1725949397928,0.21362351,2341.7,2341.6,0.42702]
[1725949398132,2.44376528,2341.7,2341.6,0.42702]
[1725949398333,0.21362351,2341.7,2341.6,0.42702]
[1725949398937,3.59876528,2341.8,2341.7,0.42701]
[1725949399131,3.5987628,2341.8,2341.7,0.42701]
[1725949399933,3.59876139,2341.8,2341.7,0.42701]
[1725949400836,3.03915176,2341.8,2341.7,0.42701]
[1725949405041,3.03915348,2341.8,2341.7,0.42701]
[1725949406036,2.82553214,2341.8,2341.7,0.42701]
[1725949407936,3.03915143,2341.8,2341.7,0.42701]
[1725949408829,0.379,2341.8,2341.7,1.65701]
[1725949409234,0.379,2341.8,2341.7,2.41611]
[1725949410033,1.67053214,2342.0,2341.9,0.42698]
[1725949410239,2.05293214,2342.0,2341.9,0.42698]
[1725949412645,2.26653863,2342.0,2341.9,0.42698]
[1725949413540,0.3824,2342.0,2341.9,1.65698]
[1725949413740,2.43363214,2342.1,2342.0,0.42696]
[1725949414246,2.43363214,2342.1,2342.0,0.80876]
[1725949414545,2.64721951,2342.1,2342.0,0.80876]
[1725949414740,2.64722051,2342.1,2342.0,0.80876]
[1725949416040,3.20683014,2342.1,2342.0,0.80876]
[1725949416247,2.84253014,2342.1,2342.0,0.80876]
[1725949416443,0.61238837,2342.1,2342.0,1.21046]
[1725949416644,1.88508479,2342.1,2342.0,1.21046]
[1725949416836,2.62084177,2342.2,2342.1,0.42694]
[1725949416837,2.06219642,2342.2,2342.1,0.42694]
[1725949417041,0.3907,2342.2,2342.1,2.04384]
[1725949417545,1.67149642,2342.3,2342.2,0.42692]
[1725949421148,1.67149642,2342.3,2342.1,0.3869]
[1725949421347,1.67149642,2342.3,2342.2,1.65691]
[1725949422351,2.43229642,2342.4,2342.3,0.4269]
[1725949422739,0.7608,2342.4,2342.3,0.4269]
[1725949422939,2.43148426,2342.4,2342.3,0.4269]
[1725949426854,2.43148426,2342.4,2342.3,0.8296]
[1725949428852,0.3962,2342.4,2342.3,2.0596]
[1725949430654,1.67068426,2342.6,2342.3,1.6327]
[1725949430950,2.03898426,2342.6,2342.5,1.65687]
[1725949431151,0.3683,2342.6,2342.5,1.65687]
[1725949433555,2.03817885,2342.6,2342.5,1.65687]
[1725949433756,2.03817885,2342.6,2342.4,0.42687]
[1725949433956,1.66987885,2342.5,2342.4,0.42687]
[1725949434462,2.59844177,2342.6,2342.3,1.23]
[1725949434656,1.66981563,2342.4,2342.3,1.6569]
[1725949435753,1.66981563,2342.5,2342.4,0.42689]
[1725949435958,1.66987563,2342.5,2342.4,0.42689]
[1725949436162,1.66988752,2342.5,2342.4,0.42689]
[1725949436570,2.03817613,2342.6,2342.5,0.42687]
[1725949437460,0.3683,2342.6,2342.4,0.82397]
[1725949437757,2.03813369,2342.6,2342.4,0.82397]
[1725949438351,2.03813369,2342.6,2342.5,0.42687]
[1725949439166,0.3683,2342.6,2342.5,0.42687]
[1725949439367,2.03813369,2342.6,2342.5,0.42687]
[1725949439662,2.03813369,2342.6,2342.4,0.82398]
[1725949439850,2.03813369,2342.6,2342.5,0.42687]
[1725949440265,2.03813369,2342.6,2342.5,1.65687]
[1725949440458,0.3683,2342.6,2342.5,1.65687]
[1725949441466,0.3683,2342.6,2342.5,2.42097]
[1725949441857,12.05494054,2342.8,2342.5,3.06126]
[1725949441858,1.66983369,2342.8,2342.5,3.06126]